Workbook

Sheet Сведения о сотруднике
A2: Сведения о сотруднике
A3: [Название компании]
A4: Код сотрудника | B4: Имя сотрудника | C4: Часовая ставка | D4: Группа налогоплательщика | E4: Федеральные налоги | F4: Местные налоги | G4: Налог на доходы | H4: Социальное страхование | I4: Медицинское страхование | J4: Всего удержано налогов | K4: Страховые вычеты | L4: Другие регулярные вычеты | M4: Итого регулярных вычетов (без учета налогов)
A5: 1 | B5: Василий Бутусов | C5: 10.00 ₽ | D5: 1 | E5: 4 | F5: 2.30% | G5: 28.00% | H5: 6.30% | I5: 1.45% | J5: =Таблица1[[#This Row],[Местные налоги]]+Таблица1[[#This Row],[Налог на доходы]]+Таблица1[[#This Row],[Социальное страхование]]+Таблица1[[#This Row],[Медицинское страхование]] -> 38.05% | K5: 20.00 ₽ | L5: 40.00 ₽ | M5: =Таблица1[[#This Row],[Страховые вычеты]]+Таблица1[[#This Row],[Другие регулярные вычеты]] -> 60.00 ₽
A6: 2 | B6: Николай Белых | C6: 13.00 ₽ | D6: 1 | E6: 4 | F6: 2.30% | G6: 28.00% | H6: 6.30% | I6: 1.45% | J6: =Таблица1[[#This Row],[Местные налоги]]+Таблица1[[#This Row],[Налог на доходы]]+Таблица1[[#This Row],[Социальное страхование]]+Таблица1[[#This Row],[Медицинское страхование]] -> 38.05% | K6: 20.00 ₽ | L6: 52.00 ₽ | M6: =Таблица1[[#This Row],[Страховые вычеты]]+Таблица1[[#This Row],[Другие регулярные вычеты]] -> 72.00 ₽
A7: 3 | B7: Светлана Коновалова | C7: 10.00 ₽ | D7: 1 | E7: 4 | F7: 2.30% | G7: 28.00% | H7: 6.30% | I7: 1.45% | J7: =Таблица1[[#This Row],[Местные налоги]]+Таблица1[[#This Row],[Налог на доходы]]+Таблица1[[#This Row],[Социальное страхование]]+Таблица1[[#This Row],[Медицинское страхование]] -> 38.05% | K7: 20.00 ₽ | L7: 0 | M7: =Таблица1[[#This Row],[Страховые вычеты]]+Таблица1[[#This Row],[Другие регулярные вычеты]] -> 20.00 ₽

Sheet Зарплатный калькулятор
A1: Зарплатный калькулятор
J2: Завершение периода: | K2: 4568800.00%
A3: ='Сведения о сотруднике'!$A$3 -> [Название компании]
A4: Код сотрудника | B4: Имя сотрудника | C4: Отработанные нормативные часы | D4: Отпускные часы | E4: Больничные часы | F4: Сверхурочные часы | G4: Сверхурочная ставка | H4: Общая зарплата | I4: Налоги и вычеты | J4: Другие вычеты | K4: Чистая зарплата
A5: 1 | B5: =VLOOKUP(A5,Таблица1[],2,FALSE) -> Василий Бутусов | C5: 50.00 | D5: 5.00 | E5: 1.00 | H5: =(VLOOKUP(A5,Таблица1[],3,FALSE)*(Таблица2[[#This Row],[Отработанные нормативные часы]]+Таблица2[[#This Row],[Отпускные часы]]+Таблица2[[#This Row],[Больничные часы]])+Таблица2[[#This Row],[Сверхурочные часы]]*Таблица2[[#This Row],[Сверхурочная ставка]]) -> 560.00 ₽ | I5: =VLOOKUP(A5,Таблица1[],10,FALSE)*Таблица2[[#This Row],[Общая зарплата]]+Таблица1[[#This Row],[Итого регулярных вычетов (без учета налогов)]] -> 273.08 ₽ | J5: 20.00 ₽ | K5: =Таблица2[[#This Row],[Общая зарплата]]-Таблица2[[#This Row],[Налоги и вычеты ]]-Таблица2[[#This Row],[Другие вычеты]] -> 266.92 ₽
A6: 2 | B6: =VLOOKUP(A6,Таблица1[],2,FALSE) -> Николай Белых | C6: 40.00 | D6: 0.00 | E6: 0.00 | H6: =(VLOOKUP(A6,Таблица1[],3,FALSE)*(Таблица2[[#This Row],[Отработанные нормативные часы]]+Таблица2[[#This Row],[Отпускные часы]]+Таблица2[[#This Row],[Больничные часы]])+Таблица2[[#This Row],[Сверхурочные часы]]*Таблица2[[#This Row],[Сверхурочная ставка]]) -> 520.00 ₽ | I6: =VLOOKUP(A6,Таблица1[],10,FALSE)*Таблица2[[#This Row],[Общая зарплата]]+Таблица1[[#This Row],[Итого регулярных вычетов (без учета налогов)]] -> 269.86 ₽ | J6: 52.00 ₽ | K6: =Таблица2[[#This Row],[Общая зарплата]]-Таблица2[[#This Row],[Налоги и вычеты ]]-Таблица2[[#This Row],[Другие вычеты]] -> 198.14 ₽
A7: 3 | B7: =VLOOKUP(A7,Таблица1[],2,FALSE) -> Светлана Коновалова | C7: 52.00 | D7: 0.00 | E7: 0.00 | F7: 2.00 | G7: 20.00 ₽ | H7: =(VLOOKUP(A7,Таблица1[],3,FALSE)*(Таблица2[[#This Row],[Отработанные нормативные часы]]+Таблица2[[#This Row],[Отпускные часы]]+Таблица2[[#This Row],[Больничные часы]])+Таблица2[[#This Row],[Сверхурочные часы]]*Таблица2[[#This Row],[Сверхурочная ставка]]) -> 560.00 ₽ | I7: =VLOOKUP(A7,Таблица1[],10,FALSE)*Таблица2[[#This Row],[Общая зарплата]]+Таблица1[[#This Row],[Итого регулярных вычетов (без учета налогов)]] -> 233.08 ₽ | J7: 20.00 ₽ | K7: =Таблица2[[#This Row],[Общая зарплата]]-Таблица2[[#This Row],[Налоги и вычеты ]]-Таблица2[[#This Row],[Другие вычеты]] -> 306.92 ₽

Sheet Индивидуальные зарплатные листы
C2: =('Сведения о сотруднике'!$A$3) -> [Название компании]
C3: Период: | D3: ='Зарплатный калькулятор'!$K$2 -> 4568800.00% | E3: Имя сотрудника | F3: =IFERROR(VLOOKUP(H3,Таблица1[],2),"") -> Василий Бутусов | G3: Код сотрудника | H3: 1
C5: Группа налогоплательщика | D5: =IFERROR(VLOOKUP(H3,Таблица1[],4),"") -> 1 | E5: Федеральные налоги | F5: =IFERROR(VLOOKUP(H3,Таблица1[],5,FALSE),"") -> 4 | G5: Отработанные часы | H5: =IFERROR(VLOOKUP(H3,Таблица2[],3,FALSE),"") -> 50
C6: Часовая ставка | D6: =IFERROR(VLOOKUP(H3,Таблица1[],3,FALSE),"") -> 10.00 ₽ | E6: Сверхурочная ставка | F6: =IFERROR(VLOOKUP(H3,Таблица2[],7,FALSE),"") -> 0 | G6: Больничные часы | H6: =IFERROR(VLOOKUP(H3,Таблица2[],5,FALSE),"") -> 1
C7: Социальное страхование | D7: =IFERROR(IFERROR(VLOOKUP(H3,Таблица1[],8,FALSE),"")*H9,"") -> 35.28 ₽ | E7: Налог на доходы физических лиц | F7: =IFERROR(IFERROR(VLOOKUP(H3,Таблица1[],7,FALSE),"")*H9,"") -> 156.80 ₽ | G7: Отпускные часы | H7: =IFERROR(VLOOKUP(H3,Таблица2[],4,FALSE),"") -> 5
C8: Медицинское страхование | D8: =IFERROR(IFERROR(VLOOKUP(H3,Таблица1[],9,FALSE),"")*H9,"") -> 8.12 ₽ | E8: Местные налоги | F8: =IFERROR(IFERROR(VLOOKUP(H3,Таблица1[],6,FALSE),"")*H9,"") -> 12.88 ₽ | G8: Сверхурочные часы | H8: =IFERROR(VLOOKUP(H3,Таблица2[],6,FALSE),"") -> 0
C9: Страховые вычеты | D9: =IFERROR(VLOOKUP(H3,Таблица1[],11,FALSE),"") -> 20.00 ₽ | E9: Другие регулярные вычеты | F9: =IFERROR(VLOOKUP(H3,Таблица1[],12,FALSE),"") -> 40.00 ₽ | G9: Общая зарплата | H9: =IFERROR(VLOOKUP(H3,Таблица2[],8,FALSE),"") -> 560.00 ₽
C10: Итого налогов и регулярных вычетов | D10: =IFERROR(SUM(F7:F9)+SUM(D7:D9),"") -> 273.08 ₽ | E10: Другие вычеты | F10: =IFERROR(VLOOKUP(H3,Таблица2[],10,FALSE),"") -> 20.00 ₽ | G10: Итого налогов и вычетов | H10: =IFERROR(IFERROR(VLOOKUP(H3,Таблица2[],9,FALSE),"")+F10,"") -> 293.08 ₽
G11: Чистая зарплата | H11: =IFERROR(VLOOKUP(H3,Таблица2[],11,FALSE),"") -> 266.92 ₽
C14: =('Сведения о сотруднике'!$A$3) -> [Название компании]
C15: Период: | D15: ='Зарплатный калькулятор'!$K$2 -> 4568800.00% | E15: Имя сотрудника | F15: =IFERROR(VLOOKUP(H15,Таблица1[],2),"") -> Николай Белых | G15: Код сотрудника | H15: 2
C17: Группа налогоплательщика | D17: =IFERROR(VLOOKUP(H15,Таблица1[],4),"") -> 1 | E17: Федеральные налоги | F17: =IFERROR(VLOOKUP(H15,Таблица1[],5,FALSE),"") -> 4 | G17: Отработанные часы | H17: =IFERROR(VLOOKUP(H15,Таблица2[],3,FALSE),"") -> 40
C18: Часовая ставка | D18: =IFERROR(VLOOKUP(H15,Таблица1[],3,FALSE),"") -> 13.00 ₽ | E18: Сверхурочная ставка | F18: =IFERROR(VLOOKUP(H15,Таблица2[],7,FALSE),"") -> 0 | G18: Больничные часы | H18: =IFERROR(VLOOKUP(H15,Таблица2[],5,FALSE),"") -> 0
C19: Социальное страхование | D19: =IFERROR(IFERROR(VLOOKUP(H15,Таблица1[],8,FALSE),"")*H21,"") -> 32.76 ₽ | E19: Налог на доходы физических лиц | F19: =IFERROR(IFERROR(VLOOKUP(H15,Таблица1[],7,FALSE),"")*H21,"") -> 145.60 ₽ | G19: Отпускные часы | H19: =IFERROR(VLOOKUP(H15,Таблица2[],4,FALSE),"") -> 0
C20: Медицинское страхование | D20: =IFERROR(IFERROR(VLOOKUP(H15,Таблица1[],9,FALSE),"")*H21,"") -> 7.54 ₽ | E20: Местные налоги | F20: =IFERROR(IFERROR(VLOOKUP(H15,Таблица1[],6,FALSE),"")*H21,"") -> 11.96 ₽ | G20: Сверхурочные часы | H20: =IFERROR(VLOOKUP(H15,Таблица2[],6,FALSE),"") -> 0
C21: Страховые вычеты | D21: =IFERROR(VLOOKUP(H15,Таблица1[],11,FALSE),"") -> 20.00 ₽ | E21: Другие регулярные вычеты | F21: =IFERROR(VLOOKUP(H15,Таблица1[],12,FALSE),"") -> 52.00 ₽ | G21: Общая зарплата | H21: =IFERROR(VLOOKUP(H15,Таблица2[],8,FALSE),"") -> 520.00 ₽
C22: Итого налогов и регулярных вычетов | D22: =IFERROR(SUM(F19:F21)+SUM(D19:D21),"") -> 269.86 ₽ | E22: Другие вычеты | F22: =IFERROR(VLOOKUP(H15,Таблица2[],10,FALSE),"") -> 52.00 ₽ | G22: Итого налогов и вычетов | H22: =IFERROR(IFERROR(VLOOKUP(H15,Таблица2[],9,FALSE),"")+F22,"") -> 321.86 ₽
G23: Чистая зарплата | H23: =IFERROR(VLOOKUP(H15,Таблица2[],11,FALSE),"") -> 198.14 ₽
C26: =('Сведения о сотруднике'!$A$3) -> [Название компании]
C27: Период: | D27: ='Зарплатный калькулятор'!$K$2 -> 4568800.00% | E27: Имя сотрудника | F27: =IFERROR(VLOOKUP(H27,Таблица1[],2),"") -> Светлана Коновалова | G27: Код сотрудника | H27: 3
C29: Группа налогоплательщика | D29: =IFERROR(VLOOKUP(H27,Таблица1[],4),"") -> 1 | E29: Федеральные налоги | F29: =IFERROR(VLOOKUP(H27,Таблица1[],5,FALSE),"") -> 4 | G29: Отработанные часы | H29: =IFERROR(VLOOKUP(H27,Таблица2[],3,FALSE),"") -> 52
C30: Часовая ставка | D30: =IFERROR(VLOOKUP(H27,Таблица1[],3,FALSE),"") -> 10.00 ₽ | E30: Сверхурочная ставка | F30: =IFERROR(VLOOKUP(H27,Таблица2[],7,FALSE),"") -> 20.00 ₽ | G30: Больничные часы | H30: =IFERROR(VLOOKUP(H27,Таблица2[],5,FALSE),"") -> 0
C31: Социальное страхование | D31: =IFERROR(IFERROR(VLOOKUP(H27,Таблица1[],8,FALSE),"")*H33,"") -> 35.28 ₽ | E31: Налог на доходы физических лиц | F31: =IFERROR(IFERROR(VLOOKUP(H27,Таблица1[],7,FALSE),"")*H33,"") -> 156.80 ₽ | G31: Отпускные часы | H31: =IFERROR(VLOOKUP(H27,Таблица2[],4,FALSE),"") -> 0
C32: Медицинское страхование | D32: =IFERROR(IFERROR(VLOOKUP(H27,Таблица1[],9,FALSE),"")*H33,"") -> 8.12 ₽ | E32: Местные налоги | F32: =IFERROR(IFERROR(VLOOKUP(H27,Таблица1[],6,FALSE),"")*H33,"") -> 12.88 ₽ | G32: Сверхурочные часы | H32: =IFERROR(VLOOKUP(H27,Таблица2[],6,FALSE),"") -> 2
C33: Страховые вычеты | D33: =IFERROR(VLOOKUP(H27,Таблица1[],11,FALSE),"") -> 20.00 ₽ | E33: Другие регулярные вычеты | F33: =IFERROR(VLOOKUP(H27,Таблица1[],12,FALSE),"") -> 0 | G33: Общая зарплата | H33: =IFERROR(VLOOKUP(H27,Таблица2[],8,FALSE),"") -> 560.00 ₽
C34: Итого налогов и регулярных вычетов | D34: =IFERROR(SUM(F31:F33)+SUM(D31:D33),"") -> 233.08 ₽ | E34: Другие вычеты | F34: =IFERROR(VLOOKUP(H27,Таблица2[],10,FALSE),"") -> 20.00 ₽ | G34: Итого налогов и вычетов | H34: =IFERROR(IFERROR(VLOOKUP(H27,Таблица2[],9,FALSE),"")+F34,"") -> 253.08 ₽
G35: Чистая зарплата | H35: =IFERROR(VLOOKUP(H27,Таблица2[],11,FALSE),"") -> 306.92 ₽
C39: =('Сведения о сотруднике'!$A$3) -> [Название компании]
C40: Период: | D40: ='Зарплатный калькулятор'!$K$2 -> 4568800.00% | E40: Имя сотрудника | F40: =IFERROR(VLOOKUP(H40,Таблица1[],2),"") ->  | G40: Код сотрудника
C42: Группа налогоплательщика | D42: =IFERROR(VLOOKUP(H40,Таблица1[],4),"") ->  | E42: Федеральные налоги | F42: =IFERROR(VLOOKUP(H40,Таблица1[],5,FALSE),"") ->  | G42: Отработанные часы | H42: =IFERROR(VLOOKUP(H40,Таблица2[],3,FALSE),"") -> 
C43: Часовая ставка | D43: =IFERROR(VLOOKUP(H40,Таблица1[],3,FALSE),"") ->  | E43: Сверхурочная ставка | F43: =IFERROR(VLOOKUP(H40,Таблица2[],7,FALSE),"") ->  | G43: Больничные часы | H43: =IFERROR(VLOOKUP(H40,Таблица2[],5,FALSE),"") -> 
C44: Социальное страхование | D44: =IFERROR(IFERROR(VLOOKUP(H40,Таблица1[],8,FALSE),"")*H46,"") ->  | E44: Налог на доходы физических лиц | F44: =IFERROR(IFERROR(VLOOKUP(H40,Таблица1[],7,FALSE),"")*H46,"") ->  | G44: Отпускные часы | H44: =IFERROR(VLOOKUP(H40,Таблица2[],4,FALSE),"") -> 
C45: Медицинское страхование | D45: =IFERROR(IFERROR(VLOOKUP(H40,Таблица1[],9,FALSE),"")*H46,"") ->  | E45: Местные налоги | F45: =IFERROR(IFERROR(VLOOKUP(H40,Таблица1[],6,FALSE),"")*H46,"") ->  | G45: Сверхурочные часы | H45: =IFERROR(VLOOKUP(H40,Таблица2[],6,FALSE),"") -> 
C46: Страховые вычеты | D46: =IFERROR(VLOOKUP(H40,Таблица1[],11,FALSE),"") ->  | E46: Другие регулярные вычеты | F46: =IFERROR(VLOOKUP(H40,Таблица1[],12,FALSE),"") ->  | G46: Общая зарплата | H46: =IFERROR(VLOOKUP(H40,Таблица2[],8,FALSE),"") -> 
C47: Итого налогов и регулярных вычетов | D47: =IFERROR(SUM(F44:F46)+SUM(D44:D46),"") -> 0 | E47: Другие вычеты | F47: =IFERROR(VLOOKUP(H40,Таблица2[],10,FALSE),"") ->  | G47: Итого налогов и вычетов | H47: =IFERROR(IFERROR(VLOOKUP(H40,Таблица2[],9,FALSE),"")+F47,"") -> 
G48: Чистая зарплата | H48: =IFERROR(VLOOKUP(H40,Таблица2[],11,FALSE),"") -> 
